Workbook

Sheet ARCDE
D1: TARTAnPION | I1: Accusé de réception de commande
D2: 2 rue de la balme | H2: N° | I2: 20240203-23
D3: 38000 ESSAI | H3: Le | I3: 2024-03-02
D4: Tél : 0652565856 | G4: Société1
D5: essai@gmail.com | G5: Service soumission
G7: adresse1
G8: 25500 MORTEAU
G9: Tél : | H9: 101010101
B10: Code client : | D10: C100001
B11: V/Réf de Commande : | D11: gagre
B14: Ligne | C14: Référence | D14: Désignation | E14: Qté | F14: Prix U. HT | G14: Montant HT | H14: Délai
H15: demandé | I15: Confirmé
B17: =IF(C17<>"",ROW(A1),"") -> 1 | C17: 12540344 | D17: =IF(C17="","",VLOOKUP(C17,Tableau2[],2,FALSE)) -> Polissage maillonHM | E17: 56 | F17: =IF(C17="","",INDEX(OFFSET(Tableau2[[#Headers],[Soumission]],MATCH(C17,Tableau2[Ref client],0),,,COUNTA(Tableau2[#Headers])-2),,MATCH(9^9,OFFSET(Tableau2[[#Headers],[Soumission]],MATCH(C17,Tableau2[Ref client],0),,,COUNTA(Tableau2[#Headers])-2),1))) -> 2.6 | G17: =IF(E17="","",E17*F17) -> 145.6 | H17: 2024-02-12 | I17: 2024-02-12
B18: =IF(C18<>"",ROW(A2),"") -> 2 | C18: 477000217 | D18: =IF(C18="","",VLOOKUP(C18,Tableau2[],2,FALSE)) -> Avivage cadran LV | E18: 32 | F18: =IF(C18="","",INDEX(OFFSET(Tableau2[[#Headers],[Soumission]],MATCH(C18,Tableau2[Ref client],0),,,COUNTA(Tableau2[#Headers])-2),,MATCH(9^9,OFFSET(Tableau2[[#Headers],[Soumission]],MATCH(C18,Tableau2[Ref client],0),,,COUNTA(Tableau2[#Headers])-2),1))) -> 4.89 | G18: =IF(E18="","",E18*F18) -> 156.48 | H18: 2024-02-22 | I18: 2024-02-22
B19: 3 | C19: 12540344 | D19: =IF(C19="","",VLOOKUP(C19,Tableau2[],2,FALSE)) -> Polissage maillonHM | F19: =IF(C19="","",INDEX(OFFSET(Tableau2[[#Headers],[Soumission]],MATCH(C19,Tableau2[Ref client],0),,,COUNTA(Tableau2[#Headers])-2),,MATCH(9^9,OFFSET(Tableau2[[#Headers],[Soumission]],MATCH(C19,Tableau2[Ref client],0),,,COUNTA(Tableau2[#Headers])-2),1))) -> 2.6
D20: =IF(C20="","",VLOOKUP(C20,Tableau2[],2,FALSE)) ->  | F20: =IF(C20="","",INDEX(OFFSET(Tableau2[[#Headers],[Soumission]],MATCH(C20,Tableau2[Ref client],0),,,COUNTA(Tableau2[#Headers])-2),,MATCH(9^9,OFFSET(Tableau2[[#Headers],[Soumission]],MATCH(C20,Tableau2[Ref client],0),,,COUNTA(Tableau2[#Headers])-2),1))) ->  | G20: =IF(E20="","",E20*F20) -> 
D21: =IF(C21="","",VLOOKUP(C21,Tableau2[],2,FALSE)) ->  | F21: =IF(C21="","",INDEX(OFFSET(Tableau2[[#Headers],[Soumission]],MATCH(C21,Tableau2[Ref client],0),,,COUNTA(Tableau2[#Headers])-2),,MATCH(9^9,OFFSET(Tableau2[[#Headers],[Soumission]],MATCH(C21,Tableau2[Ref client],0),,,COUNTA(Tableau2[#Headers])-2),1))) ->  | G21: =IF(E21="","",E21*F21) -> 
D22: =IF(C22="","",VLOOKUP(C22,Tableau2[],2,FALSE)) ->  | F22: =IF(C22="","",INDEX(OFFSET(Tableau2[[#Headers],[Soumission]],MATCH(C22,Tableau2[Ref client],0),,,COUNTA(Tableau2[#Headers])-2),,MATCH(9^9,OFFSET(Tableau2[[#Headers],[Soumission]],MATCH(C22,Tableau2[Ref client],0),,,COUNTA(Tableau2[#Headers])-2),1))) -> 
D23: =IF(C23="","",VLOOKUP(C23,Tableau2[],2,FALSE)) ->  | F23: =IF(C23="","",INDEX(OFFSET(Tableau2[[#Headers],[Soumission]],MATCH(C23,Tableau2[Ref client],0),,,COUNTA(Tableau2[#Headers])-2),,MATCH(9^9,OFFSET(Tableau2[[#Headers],[Soumission]],MATCH(C23,Tableau2[Ref client],0),,,COUNTA(Tableau2[#Headers])-2),1))) -> 
D24: =IF(C24="","",VLOOKUP(C24,Tableau2[],2,FALSE)) ->  | F24: =IF(C24="","",INDEX(OFFSET(Tableau2[[#Headers],[Soumission]],MATCH(C24,Tableau2[Ref client],0),,,COUNTA(Tableau2[#Headers])-2),,MATCH(9^9,OFFSET(Tableau2[[#Headers],[Soumission]],MATCH(C24,Tableau2[Ref client],0),,,COUNTA(Tableau2[#Headers])-2),1))) -> 
D25: =IF(C25="","",VLOOKUP(C25,Tableau2[],2,FALSE)) ->  | F25: =IF(C25="","",INDEX(OFFSET(Tableau2[[#Headers],[Soumission]],MATCH(C25,Tableau2[Ref client],0),,,COUNTA(Tableau2[#Headers])-2),,MATCH(9^9,OFFSET(Tableau2[[#Headers],[Soumission]],MATCH(C25,Tableau2[Ref client],0),,,COUNTA(Tableau2[#Headers])-2),1))) -> 
D26: =IF(C26="","",VLOOKUP(C26,Tableau2[],2,FALSE)) ->  | F26: =IF(C26="","",INDEX(OFFSET(Tableau2[[#Headers],[Soumission]],MATCH(C26,Tableau2[Ref client],0),,,COUNTA(Tableau2[#Headers])-2),,MATCH(9^9,OFFSET(Tableau2[[#Headers],[Soumission]],MATCH(C26,Tableau2[Ref client],0),,,COUNTA(Tableau2[#Headers])-2),1))) -> 
D27: =IF(C27="","",VLOOKUP(C27,Tableau2[],2,FALSE)) ->  | F27: =IF(C27="","",INDEX(OFFSET(Tableau2[[#Headers],[Soumission]],MATCH(C27,Tableau2[Ref client],0),,,COUNTA(Tableau2[#Headers])-2),,MATCH(9^9,OFFSET(Tableau2[[#Headers],[Soumission]],MATCH(C27,Tableau2[Ref client],0),,,COUNTA(Tableau2[#Headers])-2),1))) -> 
D28: =IF(C28="","",VLOOKUP(C28,Tableau2[],2,FALSE)) ->  | F28: =IF(C28="","",INDEX(OFFSET(Tableau2[[#Headers],[Soumission]],MATCH(C28,Tableau2[Ref client],0),,,COUNTA(Tableau2[#Headers])-2),,MATCH(9^9,OFFSET(Tableau2[[#Headers],[Soumission]],MATCH(C28,Tableau2[Ref client],0),,,COUNTA(Tableau2[#Headers])-2),1))) -> 
D29: =IF(C29="","",VLOOKUP(C29,Tableau2[],2,FALSE)) ->  | F29: =IF(C29="","",INDEX(OFFSET(Tableau2[[#Headers],[Soumission]],MATCH(C29,Tableau2[Ref client],0),,,COUNTA(Tableau2[#Headers])-2),,MATCH(9^9,OFFSET(Tableau2[[#Headers],[Soumission]],MATCH(C29,Tableau2[Ref client],0),,,COUNTA(Tableau2[#Headers])-2),1))) -> 
D30: =IF(C30="","",VLOOKUP(C30,Tableau2[],2,FALSE)) ->  | F30: =IF(C30="","",INDEX(OFFSET(Tableau2[[#Headers],[Soumission]],MATCH(C30,Tableau2[Ref client],0),,,COUNTA(Tableau2[#Headers])-2),,MATCH(9^9,OFFSET(Tableau2[[#Headers],[Soumission]],MATCH(C30,Tableau2[Ref client],0),,,COUNTA(Tableau2[#Headers])-2),1))) -> 
D31: =IF(C31="","",VLOOKUP(C31,Tableau2[],2,FALSE)) ->  | F31: =IF(C31="","",INDEX(OFFSET(Tableau2[[#Headers],[Soumission]],MATCH(C31,Tableau2[Ref client],0),,,COUNTA(Tableau2[#Headers])-2),,MATCH(9^9,OFFSET(Tableau2[[#Headers],[Soumission]],MATCH(C31,Tableau2[Ref client],0),,,COUNTA(Tableau2[#Headers])-2),1))) -> 
D32: =IF(C32="","",VLOOKUP(C32,Tableau2[],2,FALSE)) ->  | F32: =IF(C32="","",INDEX(OFFSET(Tableau2[[#Headers],[Soumission]],MATCH(C32,Tableau2[Ref client],0),,,COUNTA(Tableau2[#Headers])-2),,MATCH(9^9,OFFSET(Tableau2[[#Headers],[Soumission]],MATCH(C32,Tableau2[Ref client],0),,,COUNTA(Tableau2[#Headers])-2),1))) -> 
D33: =IF(C33="","",VLOOKUP(C33,Tableau2[],2,FALSE)) ->  | F33: =IF(C33="","",INDEX(OFFSET(Tableau2[[#Headers],[Soumission]],MATCH(C33,Tableau2[Ref client],0),,,COUNTA(Tableau2[#Headers])-2),,MATCH(9^9,OFFSET(Tableau2[[#Headers],[Soumission]],MATCH(C33,Tableau2[Ref client],0),,,COUNTA(Tableau2[#Headers])-2),1))) -> 
D35: Base TVA | E35: Taux | F35: TVA | H35: NET A PAYER TTC
D36: =SUM(G17:G33) -> 302.08 | E36: 0.2 | F36: =D36*E36 -> 60.416 | H36: =D36+F36 -> 362.496
B38: Conditions de règlement : | D38: VIREMENT BANCAIRE 30 jours FIN DE MOIS

Sheet BL1
E1: Bon de livraison N° | F1: =ARCDE!I2&"-1BL" -> 20240203-23-1BL
E2: Date : | F2: =TODAY() -> 2024-02-04
D4: Adresse de livraison
D5: =IF(ARCDE!G4="","",ARCDE!G4) -> Société1
B6: =ARCDE!D1 -> TARTAnPION | D6: =IF(ARCDE!G5="","",ARCDE!G5) -> Service soumission
B7: =ARCDE!D2 -> 2 rue de la balme | D7: =IF(ARCDE!G6="","",ARCDE!G6) -> 
B8: =ARCDE!D3 -> 38000 ESSAI | D8: =IF(ARCDE!G7="","",ARCDE!G7) -> adresse1
B9: =ARCDE!D4 -> Tél : 0652565856 | D9: =IF(ARCDE!G8="","",ARCDE!G8) -> 25500 MORTEAU
B10: =ARCDE!D5 -> essai@gmail.com | D10: Tél : | E10: =ARCDE!H9 -> 101010101
B13: Code client : | D13: =ARCDE!D10 -> C100001
B14: Réf Commande/Achat client : | D14: =ARCDE!D11 -> gagre
B17: Ligne | C17: Référence | D17: Désignation | E17: Soldé | F17: Qté CDE | G17: Qté Livré
B20: 1 | C20: =IF(B20="","",VLOOKUP(B20,Arcde,2,FALSE)) -> 12540344 | D20: =IF(B20="","",VLOOKUP(B20,Arcde,3,FALSE)) -> Polissage maillonHM | E20: Oui | F20: =IF(B20="","",VLOOKUP(B20,Arcde,4,FALSE)) -> 56 | G20: 56
B21: 2 | C21: 477000217 | D21: Avivage cadran LV | E21: Oui | F21: 32 | G21: 32
B22: 3 | C22: 12540344 | D22: Polissage maillonHM | F22: 0
B38: Commentaires :
B39: 1 Pièce rebutée
B40: Mauvaise qualité de finition
B41: Manque 1 pièce à reception

Sheet BL2
E1: Bon de livraison N° | F1: =ARCDE!I2&"-2BL" -> 20240203-23-2BL | H1: G1 : Saisir manuellement selon c'est le combientième de BL concernant cette commande
E2: Date : | F2: =TODAY() -> 2024-02-04
D4: Adresse de livraison
D5: =IF(ARCDE!G4="","",ARCDE!G4) -> Société1
B6: =ARCDE!D1 -> TARTAnPION | D6: =IF(ARCDE!G5="","",ARCDE!G5) -> Service soumission
B7: =ARCDE!D2 -> 2 rue de la balme | D7: =IF(ARCDE!G6="","",ARCDE!G6) -> 
B8: =ARCDE!D3 -> 38000 ESSAI | D8: =IF(ARCDE!G7="","",ARCDE!G7) -> adresse1
B9: =ARCDE!D4 -> Tél : 0652565856 | D9: =IF(ARCDE!G8="","",ARCDE!G8) -> 25500 MORTEAU
B10: =ARCDE!D5 -> essai@gmail.com | D10: Tél : | E10: =ARCDE!H9 -> 101010101
B13: Code client : | D13: =ARCDE!D10 -> C100001
B14: Réf Commande/Achat client : | D14: =ARCDE!D11 -> gagre
B17: Ligne | C17: Référence | D17: Désignation | E17: Soldé | F17: Qté CDE | G17: Qté Livré
C20: =IF(B20="","",VLOOKUP(B20,Arcde,2,FALSE)) ->  | D20: =IF(B20="","",VLOOKUP(B20,Arcde,3,FALSE)) ->  | F20: =IF(B20="","",VLOOKUP(B20,Arcde,4,FALSE)) -> 
B38: Commentaires :

Sheet BL3
E1: Bon de livraison N° | F1: =ARCDE!I2&"-3BL" -> 20240203-23-3BL
D2: Date : | E2: =TODAY() -> 2024-02-04
D4: Adresse de livraison
D5: =IF(ARCDE!G4="","",ARCDE!G4) -> Société1
B6: =ARCDE!D1 -> TARTAnPION | D6: =IF(ARCDE!G5="","",ARCDE!G5) -> Service soumission
B7: =ARCDE!D2 -> 2 rue de la balme | D7: =IF(ARCDE!G6="","",ARCDE!G6) -> 
B8: =ARCDE!D3 -> 38000 ESSAI | D8: =IF(ARCDE!G7="","",ARCDE!G7) -> adresse1
B9: =ARCDE!D4 -> Tél : 0652565856 | D9: =IF(ARCDE!G8="","",ARCDE!G8) -> 25500 MORTEAU
B10: =ARCDE!D5 -> essai@gmail.com | D10: Tél : | E10: =ARCDE!H9 -> 101010101
B13: Code client : | D13: =ARCDE!D10 -> C100001
B14: Réf Commande/Achat client : | D14: =ARCDE!D11 -> gagre
B17: Ligne | C17: Référence | D17: Désignation | E17: Soldé | F17: Qté CDE | G17: Qté Livré
C20: =IF(B20="","",VLOOKUP(B20,Arcde,2,FALSE)) ->  | D20: =IF(B20="","",VLOOKUP(B20,Arcde,3,FALSE)) ->  | F20: =IF(B20="","",VLOOKUP(B20,Arcde,4,FALSE)) -> 
B38: Commentaires :

Sheet BL4
E1: Bon de livraison N° | F1: =ARCDE!I2&"-4BL" -> 20240203-23-4BL | H1: G1 : Saisir manuellement selon c'est le combientième de BL concernant cette commande
E2: Date : | F2: =TODAY() -> 2024-02-04
D4: Adresse de livraison
D5: =IF(ARCDE!G4="","",ARCDE!G4) -> Société1
B6: =ARCDE!D1 -> TARTAnPION | D6: =IF(ARCDE!G5="","",ARCDE!G5) -> Service soumission
B7: =ARCDE!D2 -> 2 rue de la balme | D7: =IF(ARCDE!G6="","",ARCDE!G6) -> 
B8: =ARCDE!D3 -> 38000 ESSAI | D8: =IF(ARCDE!G7="","",ARCDE!G7) -> adresse1
B9: =ARCDE!D4 -> Tél : 0652565856 | D9: =IF(ARCDE!G8="","",ARCDE!G8) -> 25500 MORTEAU
B10: =ARCDE!D5 -> essai@gmail.com | D10: Tél : | E10: =ARCDE!H9 -> 101010101
B13: Code client : | D13: =ARCDE!D10 -> C100001
B14: Réf Commande/Achat client : | D14: =ARCDE!D11 -> gagre
B17: Ligne | C17: Référence | D17: Désignation | E17: Soldé | F17: Qté CDE | G17: Qté Livré
C20: =IF(B20="","",VLOOKUP(B20,Arcde,2,FALSE)) ->  | D20: =IF(B20="","",VLOOKUP(B20,Arcde,3,FALSE)) ->  | F20: =IF(B20="","",VLOOKUP(B20,Arcde,4,FALSE)) -> 
B38: Commentaires :

Sheet Fact1
F1: FACTURE
D3: =IF(ARCDE!G4="","",ARCDE!G4) -> Société1
D4: =IF(ARCDE!G5="","",ARCDE!G5) -> Service soumission
A5: 2 rue de la balme | D5: =IF(ARCDE!G6="","",ARCDE!G6) -> 
A6: 38000 ESSAI | D6: =IF(ARCDE!G7="","",ARCDE!G7) -> adresse1
A7: Tél : 0652565856 | D7: =IF(ARCDE!G8="","",ARCDE!G8) -> 25500 MORTEAU
A8: essai@gmail.com | E8: Tél : | F8: =ARCDE!H9 -> 101010101
B10: RENSEIGNEMENT A JOINDRE A VOTRE REGLEMENT
B11: FACTURE N° | C11: Date | E11: N° Client | F11: V/Ref Cde
B12: =ARCDE!I2&"-1"&"FAC" -> 20240203-23-1FAC | C12: =TODAY() -> 2024-02-04 | E12: =ARCDE!D10 -> C100001 | F12: =ARCDE!D11 -> gagre
B13: Conditions de règlement : | C13: =IF(E12="","",VLOOKUP(E12,baseclient[],12,FALSE)) -> VIREMENT BANCAIRE 30 jours FIN DE MOIS
A16: Ligne | B16: Référence | C16: Désignation | D16: Qté | E16: Prix U.HT Nette | F16: Montant HT
B19: =IF(A19="","",VLOOKUP(A19,Arcde,2,FALSE)) ->  | C19: =IF(A19="","",VLOOKUP(A19,Arcde,3,FALSE)) ->  | E19: =IF(A19="","",VLOOKUP(A19,Arcde,5,FALSE)) ->  | F19: =IF(D19="","",D19*E19) -> 
F20: =IF(D20="","",D20*E20) -> 
A38: MONTANT HT NET | C38: TVA | D38: NET A PAYER TTC | F38: TAUX %
B39: =SUM(F19:F35) -> 0 | C39: =B39*F39/100 -> 0 | D39: =C39+B39 -> 0 | F39: 20

Sheet Fact2
F1: FACTURE
D3: =IF(ARCDE!G4="","",ARCDE!G4) -> Société1
D4: =IF(ARCDE!G5="","",ARCDE!G5) -> Service soumission
A5: 2 rue de la balme | D5: =IF(ARCDE!G6="","",ARCDE!G6) -> 
A6: 38000 ESSAI | D6: =IF(ARCDE!G7="","",ARCDE!G7) -> adresse1
A7: Tél : 0652565856 | D7: =IF(ARCDE!G8="","",ARCDE!G8) -> 25500 MORTEAU
A8: essai@gmail.com | E8: Tél : | F8: =ARCDE!H9 -> 101010101
B10: RENSEIGNEMENT A JOINDRE A VOTRE REGLEMENT
B11: FACTURE N° | C11: Date | E11: N° Client | F11: V/Ref Cde
B12: =ARCDE!I2&"-2"&"FAC" -> 20240203-23-2FAC | C12: =TODAY() -> 2024-02-04 | E12: =ARCDE!D10 -> C100001 | F12: =ARCDE!D11 -> gagre
B13: Conditions de règlement : | C13: =IF(E12="","",VLOOKUP(E12,baseclient[],12,FALSE)) -> VIREMENT BANCAIRE 30 jours FIN DE MOIS
A16: Ligne | B16: Référence | C16: Désignation | D16: Qté | E16: Prix U.HT Nette | F16: Montant HT
B19: =IF(A19="","",VLOOKUP(A19,Arcde,2,FALSE)) ->  | C19: =IF(A19="","",VLOOKUP(A19,Arcde,3,FALSE)) ->  | E19: =IF(A19="","",VLOOKUP(A19,Arcde,5,FALSE)) ->  | F19: =IF(D19="","",D19*E19) -> 
F20: =IF(D20="","",D20*E20) -> 
A38: MONTANT HT NET | C38: TVA | D38: NET A PAYER TTC | F38: TAUX %
B39: =SUM(F19:F35) -> 0 | C39: =B39*F39/100 -> 0 | D39: =C39+B39 -> 0 | F39: 20

Sheet Avoir
F1: AVOIR
D3: =IF(ARCDE!G4="","",ARCDE!G4) -> Société1
D4: =IF(ARCDE!G5="","",ARCDE!G5) -> Service soumission
A5: 2 rue de la balme | D5: =IF(ARCDE!G6="","",ARCDE!G6) -> 
A6: 38000 ESSAI | D6: =IF(ARCDE!G7="","",ARCDE!G7) -> adresse1
A7: Tél : 0652565856 | D7: =IF(ARCDE!G8="","",ARCDE!G8) -> 25500 MORTEAU
A8: essai@gmail.com | E8: Tél : | F8: =ARCDE!H9 -> 101010101
B11: AVOIR N° | C11: Date | E11: N° Client | F11: V/Ref Cde
B12: =ARCDE!I2&"-1"&"AV" -> 20240203-23-1AV | C12: =TODAY() -> 2024-02-04 | E12: =ARCDE!D10 -> C100001 | F12: =ARCDE!D11 -> gagre
A16: Ligne | B16: Référence | C16: Désignation | D16: Qté | E16: Prix U.HT Nette | F16: Montant HT
A19: 2 | B19: =IF(A19="","",VLOOKUP(A19,Arcde,2,FALSE)) -> 477000217 | C19: =IF(A19="","",VLOOKUP(A19,Arcde,3,FALSE)) -> Avivage cadran LV | D19: 5 | E19: =IF(A19="","",VLOOKUP(A19,Arcde,5,FALSE)) -> 4.89 | F19: =IF(D19="","",D19*E19) -> 24.45
F20: =IF(D20="","",D20*E20) -> 
A38: MONTANT HT NET | C38: TVA | D38: NET A PAYER TTC | F38: TAUX %
B39: =SUM(F19:F35) -> 24.45 | C39: =B39*F39/100 -> 4.89 | D39: =C39+B39 -> 29.34 | F39: 20

Sheet Enreg_lien_PDF
A1: Document PDF | G1: Classeur Excel extension xlsx sans macro
A2: Noms | B2: N° cité | C2: Lien vers sauvegarde | D2: DatInv | E2: num | G2: Noms | H2: N° cité | I2: Lien vers sauvegarde
A3: Société2 | B3: 20240203-2-1AV | C3: D:\Bureau\gturkmen\20240203-2-1AV | D3: 20240203 | E3: 1 | G3: Société2 | H3: 20240203-2-1AV | I3: D:\Bureau\gturkmen\20240203-2-1AV
G4: soc | H4: num | I4: D:\Bureau\gturkmen\20240203-23.xlsx
G5: soc | H5: num | I5: D:\Bureau\gturkmen\20240203-23.xlsx

Sheet Article
B1: Article
B4: Ref client | C4: Designation | D4: Soumission | E4: Prix HT 2024-1 | F4: Prix HT 2024-2 | G4: Prix HT20243
B5: 25364 | C5: Polissage fermoir 325 | D5: 10.55 | E5: 11.02
B6: 2152365 | C6: Avivage fermoir HB | D6: 3.99 | E6: 4.03 | F6: 4.08 | G6: 4.85
B7: 1244242 | C7: Polissage cadran 125 | D7: 5.56
B8: 1254035 | C8: Polissage bague HM | D8: 3.56
B9: 12540344 | C9: Polissage maillonHM | D9: 2.6
B10: 477000217 | C10: Avivage cadran LV | D10: 4.89

Sheet Baseclient
C1: Base CLIENT
C4: Code Client | D4: Societe2 | E4: Site | F4: Civilité | G4: Nom | H4: Prenom | I4: Service | J4: Adresse | K4: Code postal | L4: Ville | M4: Téléphone | N4: Mode de règlement | O4: Colonne9 | P4: CP VILLE
C5: C100001 | D5: Société1 | E5: Site1 | F5: Mr | G5: Nom1 | H5: Prenom1 | I5: Service soumission | J5: adresse1 | K5: 25500 | L5: MORTEAU | M5: 101010101 | N5: VIREMENT BANCAIRE 30 jours FIN DE MOIS | P5: =baseclient[[#This Row],[Code postal]]&" "&baseclient[[#This Row],[Ville]] -> 25500 MORTEAU
C6: C100002 | D6: Société2 | E6: Site1 | F6: Mme | G6: Nom2 | H6: Prenom2 | I6: Service soumission | J6: adresse225 | K6: 25000 | L6: BESANCON | M6: 202020202 | N6: VIREMENT BANCAIRE 30 jours FIN DE MOIS | P6: =baseclient[[#This Row],[Code postal]]&" "&baseclient[[#This Row],[Ville]] -> 25000 BESANCON
C7: C100002 | D7: Société2 | E7: Site2 | F7: Mme | G7: Nom4 | H7: Prenom4 | I7: Service Achat | J7: adresse225 | K7: 25000 | L7: BESANCON | M7: 202020202 | N7: VIREMENT BANCAIRE 30 jours FIN DE MOIS | P7: =baseclient[[#This Row],[Code postal]]&" "&baseclient[[#This Row],[Ville]] -> 25000 BESANCON
C8: C100002 | D8: Société2 | E8: Site2 | F8: Mr | G8: Nom3 | H8: Prenom3 | I8: Service comptabilité | J8: adresse3 | K8: 25000 | L8: BESANCON | M8: 303030303 | N8: VIREMENT BANCAIRE 30 jours FIN DE MOIS | P8: =baseclient[[#This Row],[Code postal]]&" "&baseclient[[#This Row],[Ville]] -> 25000 BESANCON
C9: C100002 | D9: Société2 | E9: Site3 | F9: Mr | G9: Nom3 | H9: Prenom4 | I9: Service achat | J9: adresse4 | K9: 75000 | L9: PARIS | M9: 404040404 | N9: VIREMENT BANCAIRE 30 jours FIN DE MOIS | P9: =baseclient[[#This Row],[Code postal]]&" "&baseclient[[#This Row],[Ville]] -> 75000 PARIS
C10: C100002 | D10: Société2 | E10: Site4 | F10: Mr | G10: Nom2 | H10: Prenom2 | I10: Service achat | J10: adresse2 | K10: 25000 | L10: BESANCON | M10: 505050505 | N10: VIREMENT BANCAIRE 30 jours FIN DE MOIS | P10: =baseclient[[#This Row],[Code postal]]&" "&baseclient[[#This Row],[Ville]] -> 25000 BESANCON
